bitfinex/quotes_BTCUSD_20240611
["timestamp","ask_amount","ask_price","bid_price","bid_amount"]
[1718119883272,0.24431993,66840.0,66839.0,0.0005]
[1718119883490,0.24431993,66840.0,66837.0,0.150117]
[1718119883701,0.14431993,66839.0,66838.0,0.1]
[1718119884571,0.00735084,66839.0,66838.0,0.1005]
[1718119884980,0.1,66840.0,66839.0,0.0005]
[1718119885199,0.24431993,66840.0,66838.0,0.249615]
[1718119885616,0.00735084,66839.0,66838.0,0.249615]
[1718119886039,0.35167077,66839.0,66838.0,0.1]
[1718119886473,0.36857522,66839.0,66836.0,0.01185997]
[1718119886685,0.21690445,66837.0,66836.0,0.01185997]
[1718119886905,0.34431993,66837.0,66836.0,0.01185997]
[1718119887128,0.36122438,66837.0,66836.0,0.01185997]
[1718119887415,0.2,66835.0,66834.0,0.01798138]
[1718119887638,0.2,66826.0,66821.0,0.4718]
[1718119887873,0.34431993,66825.0,66820.0,0.149655]
[1718119888083,0.35167077,66825.0,66820.0,0.149655]
[1718119888304,0.15167077,66825.0,66820.0,0.149655]
[1718119888942,0.15167077,66825.0,66821.0,0.1]
[1718119889162,0.36857522,66825.0,66821.0,0.1]
[1718119889384,0.35907522,66825.0,66821.0,0.1]
[1718119889612,0.2,66823.0,66821.0,0.1]
[1718119889825,0.36122438,66822.0,66821.0,0.1]
[1718119890050,0.46854283,66822.0,66821.0,0.1]
[1718119890300,0.2,66815.0,66808.0,0.14968]
[1718119890515,0.2,66809.0,66806.0,0.00259905]
[1718119890734,0.2,66809.0,66803.0,0.00056381]
[1718119890735,0.14431993,66808.0,66803.0,0.00056381]
[1718119890945,0.35163838,66808.0,66803.0,0.00056381]
[1718119891160,0.15163838,66808.0,66803.0,0.00056381]
[1718119891813,0.15163838,66808.0,66803.0,0.00106381]
[1718119892020,0.15163838,66808.0,66803.0,0.00056381]
[1718119892228,0.35163838,66808.0,66803.0,0.00056381]
[1718119892658,0.15163838,66808.0,66803.0,0.00056381]
[1718119892871,0.15163838,66808.0,66803.0,0.00026762]
[1718119893083,0.35163838,66808.0,66803.0,0.018102]
[1718119893298,0.15163838,66808.0,66803.0,0.018102]
[1718119893508,0.2,66806.0,66803.0,0.118102]
[1718119893741,0.14431993,66805.0,66803.0,0.118102]
[1718119893973,0.00728219,66805.0,66804.0,0.445091]
[1718119894225,0.00728219,66805.0,66804.0,0.545591]
[1718119894445,0.1,66810.0,66806.0,0.149685]
[1718119894659,0.2,66813.0,66807.0,0.1]
[1718119894660,0.14431993,66809.0,66807.0,0.1]
[1718119894875,0.15149273,66809.0,66807.0,0.1]
[1718119899598,0.35149273,66809.0,66807.0,0.1]
[1718119899781,0.15149273,66809.0,66803.0,0.118102]
[1718119900021,0.35149273,66809.0,66803.0,0.118102]
[1718119900684,0.15149273,66809.0,66803.0,0.118102]
[1718119901100,0.2,66806.0,66803.0,0.118102]
[1718119901296,0.14431993,66805.0,66803.0,0.118102]
[1718119901670,0.0071728,66804.0,66803.0,0.118102]
[1718119901878,0.15149273,66804.0,66803.0,0.118102]
[1718119902498,0.15149273,66804.0,66803.0,0.42855478]
[1718119903777,0.15149273,66804.0,66803.0,0.57824778]
[1718119904459,0.14431993,66804.0,66803.0,0.57824778]
[1718119904693,0.15149273,66804.0,66803.0,0.57824778]
[1718119905702,0.15149273,66804.0,66803.0,0.57874778]
[1718119906346,0.15149273,66804.0,66803.0,0.57824778]
[1718119907976,0.15149273,66804.0,66803.0,0.42855478]
[1718119909756,0.15149273,66804.0,66803.0,0.42825859]
[1718119911755,0.56839718,66804.0,66803.0,0.32825859]
[1718119911984,0.71599718,66804.0,66803.0,0.32825859]
[1718119912201,0.71599718,66804.0,66803.0,0.01780581]
[1718119912414,0.41690445,66801.0,66800.0,0.005]
[1718119912633,0.56122438,66801.0,66800.0,0.005]
[1718119912871,0.56836631,66801.0,66800.0,0.005]
[1718119913524,0.56836631,66801.0,66800.0,0.31549331]
[1718119913965,0.56836631,66801.0,66800.0,0.46806419]
[1718119914185,0.2,66798.0,66796.0,0.00086]
[1718119914409,0.14431993,66797.0,66796.0,0.00086]
[1718119914618,0.15128872,66797.0,66796.0,0.00086]
[1718119915825,0.15128872,66797.0,66796.0,0.01874477]
[1718119916066,0.36819317,66797.0,66796.0,0.00086]
[1718119917050,0.15128872,66797.0,66796.0,0.00086]
[1718119920499,0.15128872,66797.0,66796.0,0.150569]
[1718119920701,0.15128872,66797.0,66796.0,0.250569]
[1718119922275,0.15128872,66797.0,66796.0,0.507069]
[1718119922740,0.14431993,66797.0,66796.0,0.507069]
[1718119922980,0.14431993,66797.0,66796.0,0.50627278]
[1718119923241,0.15128872,66797.0,66796.0,0.50627278]
[1718119923475,0.15128872,66797.0,66796.0,0.25027278]
[1718119923932,0.35128872,66797.0,66796.0,0.10056378]
[1718119924396,0.15128872,66797.0,66796.0,0.22551701]
[1718119927064,0.15128872,66797.0,66796.0,0.22601701]
[1718119927291,0.15128872,66797.0,66796.0,0.22551701]
[1718119927697,0.15128872,66797.0,66796.0,0.22601701]
[1718119927960,0.15128872,66797.0,66796.0,0.22551701]
[1718119928195,0.15128872,66797.0,66796.0,0.22601701]
[1718119928430,0.15128872,66797.0,66796.0,0.37572601]
[1718119928910,0.15128872,66797.0,66796.0,0.37522601]
[1718119929138,0.15128872,66797.0,66796.0,0.22551701]
[1718119930495,0.15128872,66797.0,66796.0,0.27062204]
[1718119931411,0.15128872,66797.0,66796.0,0.29259527]
[1718119931910,0.15128872,66797.0,66796.0,0.27023754]
[1718119932349,0.15128872,66797.0,66796.0,0.22551701]
[1718119932575,0.15128872,66797.0,66796.0,0.29259527]
[1718119932816,0.50918872,66797.0,66796.0,0.22551701]
[1718119933021,0.82629317,66797.0,66796.0,0.27026981]
[1718119933269,0.92629317,66797.0,66796.0,0.17026981]
[1718119933481,1.02629317,66797.0,66796.0,0.12551701]
[1718119934367,1.18600017,66797.0,66796.0,0.12551701]
[1718119935458,1.18600017,66797.0,66787.0,0.06302383]
[1718119935459,0.87560445,66788.0,66787.0,0.06302383]
[1718119935687,1.19752438,66788.0,66787.0,0.01824038]
[1718119935914,1.35422919,66788.0,66787.0,0.01824038]
[1718119936137,0.41690445,66779.0,66778.0,0.04824466]
[1718119936354,0.56122438,66779.0,66778.0,0.04564345]
[1718119936564,0.56122438,66779.0,66778.0,0.00086]
[1718119936777,0.72794919,66779.0,66778.0,0.00086]
[1718119937002,1.15884919,66779.0,66778.0,0.00086]
[1718119937674,1.14884919,66779.0,66778.0,0.00086]
[1718119938151,0.99910219,66779.0,66778.0,0.00086]
[1718119939311,0.99900219,66779.0,66778.0,0.00086]
[1718119939792,1.33634919,66779.0,66778.0,0.00086]
[1718119940003,1.32634919,66779.0,66778.0,0.00086]
[1718119941564,1.53634919,66779.0,66778.0,0.00086]
[1718119941769,1.83584419,66779.0,66778.0,0.00086]
[1718119941977,0.57657845,66767.0,66766.0,0.00855]
[1718119942187,1.35629838,66767.0,66766.0,0.00855]
[1718119942411,1.36282015,66767.0,66766.0,0.00855]
[1718119943263,1.36282015,66767.0,66750.0,0.00856]
[1718119943264,0.41680445,66751.0,66750.0,0.00856]
[1718119943479,0.71093438,66751.0,66750.0,0.00856]
[1718119943695,0.72093438,66751.0,66750.0,0.00856]
[1718119943905,0.90476745,66751.0,66750.0,0.00856]
[1718119944326,1.16966745,66751.0,66750.0,0.00856]
[1718119944541,1.34726745,66751.0,66750.0,0.00856]
[1718119945682,1.90428745,66751.0,66750.0,0.00856]
[1718119946124,1.60466745,66751.0,66750.0,0.00856]
[1718119946336,1.33726745,66751.0,66750.0,0.00856]
[1718119946545,1.34726745,66751.0,66750.0,0.00856]
[1718119947378,1.33726745,66751.0,66750.0,0.00856]
[1718119947588,1.34726745,66751.0,66750.0,0.00856]
[1718119949579,1.33726745,66751.0,66750.0,0.00856]
[1718119949797,1.34726745,66751.0,66750.0,0.00856]
[1718119950227,1.33726745,66751.0,66750.0,0.00856]
[1718119950445,1.15966745,66751.0,66750.0,0.00856]
[1718119950653,1.34726745,66751.0,66750.0,0.00856]
[1718119952407,1.64688745,66751.0,66750.0,0.00856]
[1718119953488,1.34726745,66751.0,66750.0,0.00856]
[1718119954329,0.56663245,66743.0,66740.0,0.00855]
[1718119954506,0.63328434,66743.0,66740.0,0.00855]
[1718119954752,0.63936413,66743.0,66740.0,0.00855]
[1718119956324,0.81696413,66743.0,66740.0,0.00855]
[1718119957641,0.63936413,66743.0,66740.0,0.00855]
[1718119958293,0.63936413,66743.0,66742.0,0.16275]
[1718119958294,0.22255968,66743.0,66742.0,0.16275]
[1718119958514,0.22255968,66743.0,66742.0,0.69398]
[1718119958515,0.15039972,66743.0,66742.0,0.69398]
[1718119958739,0.15039972,66743.0,66742.0,0.69448]
[1718119959820,0.00607979,66743.0,66742.0,0.69448]
[1718119960321,0.1,66750.0,66749.0,0.585414]
[1718119960532,0.24431993,66750.0,66749.0,0.4356]
[1718119960750,0.1,66746.0,66744.0,0.585424]
[1718119960962,0.1,66746.0,66745.0,0.149823]
[1718119961198,0.1,66747.0,66746.0,0.14982]
[1718119961410,0.1,66747.0,66746.0,0.15032]
[1718119961619,0.10607979,66747.0,66746.0,0.14982]
[1718119961826,0.1,66747.0,66746.0,0.14982]
[1718119962255,0.10607979,66747.0,66746.0,0.14982]
[1718119962470,0.00607979,66747.0,66746.0,0.25032]
[1718119962901,0.1,66754.0,66751.0,0.0005]
[1718119963110,0.1,66754.0,66753.0,0.4326]
[1718119963560,0.1,66754.0,66753.0,0.4321]
[1718119964202,0.1,66754.0,66753.0,0.581906]
[1718119965063,0.1,66754.0,66753.0,0.4321]
[1718119965310,0.2,66753.0,66750.0,0.149811]
[1718119965525,0.2,66753.0,66751.0,0.1]
[1718119965960,0.1999,66754.0,66751.0,0.1]
[1718119966161,0.1,66754.0,66753.0,0.149806]
[1718119966895,0.1,66754.0,66751.0,0.1]
[1718119967105,0.1,66754.0,66750.0,0.14981]
[1718119967320,0.1,66754.0,66751.0,0.1]
[1718119967751,0.3,66754.0,66751.0,0.1]
[1718119967984,0.31680445,66752.0,66751.0,0.1]
[1718119968217,0.0999,66752.0,66751.0,0.1]
[1718119968874,0.0999,66752.0,66748.0,0.1]
[1718119969542,0.0999,66752.0,66746.0,0.01836097]
[1718119969761,0.0999,66752.0,66747.0,0.10738941]
[1718119969976,0.0999,66752.0,66748.0,0.1]
[1718119970415,0.0999,66752.0,66750.0,0.0005]
[1718119970669,0.1,66754.0,66750.0,0.0005]
[1718119970887,0.1,66754.0,66748.0,0.1]
[1718119971103,0.1,66754.0,66750.0,0.149811]
[1718119971317,0.1,66754.0,66751.0,0.1]
[1718119971564,0.1,66754.0,66748.0,0.0005]
[1718119971790,0.17205996,66755.0,66749.0,0.10554665]
[1718119972001,0.1,66754.0,66750.0,0.1]
[1718119972226,0.1,66754.0,66747.0,0.0005]
[1718119972443,0.1,66754.0,66746.0,0.1005]
[1718119972649,0.1,66754.0,66747.0,0.10489402]
[1718119972856,0.00622027,66753.0,66749.0,0.149812]
[1718119973073,0.00622027,66753.0,66750.0,0.1]
[1718119973715,0.14431993,66752.0,66750.0,0.1]
[1718119974145,0.00623266,66751.0,66750.0,0.1]
[1718119974351,0.15055259,66751.0,66750.0,0.1]
[1718119975433,0.15055259,66751.0,66750.0,0.1005]
[1718119975873,0.15055259,66751.0,66750.0,0.1]
[1718119977025,0.35055259,66751.0,66750.0,0.1]
[1718119977229,0.15055259,66751.0,66750.0,0.1]
[1718119977443,0.35055259,66751.0,66750.0,0.1]
[1718119977889,0.45045259,66751.0,66750.0,0.1]
[1718119978105,0.2,66748.0,66744.0,0.1]
[1718119978318,0.17205996,66745.0,66744.0,0.1]
[1718119978539,0.31637989,66745.0,66743.0,0.01801044]
[1718119978759,0.46122438,66744.0,66743.0,0.01801044]
[1718119978973,0.41680445,66743.0,66740.0,0.00855]
[1718119979182,0.34403962,66743.0,66740.0,0.00855]
[1718119979382,0.56094407,66743.0,66740.0,0.00855]
[1718119979595,0.72527673,66743.0,66742.0,0.02680547]
[1718119979804,0.72527673,66743.0,66742.0,0.00855]
[1718119979805,1.01587673,66743.0,66742.0,0.00855]
[1718119980019,1.16570473,66743.0,66742.0,0.00855]
[1718119981972,1.17570473,66743.0,66742.0,0.00855]
[1718119983338,1.17570473,66743.0,66736.0,0.00856]
[1718119983339,0.57646514,66737.0,66736.0,0.00856]
[1718119983549,1.25044503,66737.0,66736.0,0.00856]
[1718119983758,1.42804503,66737.0,66736.0,0.00856]
[1718119983972,1.43427769,66737.0,66736.0,0.00856]
[1718119985950,1.53427769,66737.0,66736.0,0.00856]
[1718119987087,1.99467769,66737.0,66736.0,0.00856]
[1718119987305,2.09436069,66737.0,66736.0,0.00856]
[1718119987515,2.09436069,66737.0,66711.0,0.00856]
[1718119987516,0.41662414,66712.0,66711.0,0.00856]
[1718119987728,0.81070403,66712.0,66711.0,0.00856]
[1718119987939,0.81679549,66712.0,66711.0,0.00856]
[1718119988383,1.69119349,66712.0,66711.0,0.00856]
[1718119988613,0.3126,66700.0,66687.0,0.04473404]
[1718119988843,0.01,66703.0,66683.0,0.00856]
[1718119988844,0.51662414,66684.0,66683.0,0.00856]
[1718119989063,0.19971969,66684.0,66683.0,0.00856]
[1718119989516,0.10576641,66684.0,66683.0,0.00856]
[1718119989955,0.25008634,66684.0,66683.0,0.00856]
[1718119991721,0.25008634,66684.0,66683.0,0.45856]
[1718119991722,0.15026665,66684.0,66683.0,0.45856]
[1718119991960,0.09981969,66694.0,66687.0,0.0005]
[1718119992182,0.09981969,66692.0,66689.0,0.0005]
[1718119992403,0.01690445,66707.0,66689.0,0.0005]
[1718119992404,0.09981969,66700.0,66694.0,0.4354]
[1718119992633,0.07215996,66697.0,66695.0,0.1]
[1718119992848,0.41662414,66684.0,66683.0,0.00956]
[1718119993304,1.04052414,66684.0,66683.0,0.00856]
[1718119993542,1.04052414,66684.0,66683.0,0.00956]
[1718119993769,1.19484407,66684.0,66683.0,0.00956]
[1718119994011,0.73854407,66684.0,66683.0,0.00856]
[1718119994255,0.34403962,66684.0,66683.0,0.00856]
[1718119994754,1.16570507,66684.0,66683.0,0.00856]
[1718119994972,1.16570507,66684.0,66683.0,0.00956]
[1718119995176,0.94880062,66684.0,66683.0,0.00956]
[1718119995390,0.56094407,66684.0,66683.0,0.00956]
[1718119995865,0.57094407,66684.0,66683.0,0.00956]
[1718119996100,0.71244407,66684.0,66683.0,0.00956]
[1718119996968,0.71244407,66684.0,66683.0,0.00856]
[1718119997412,0.61262438,66684.0,66683.0,0.00956]
[1718119997620,0.72244407,66684.0,66683.0,0.00956]
[1718119997838,1.01804407,66684.0,66683.0,0.00856]
[1718119998065,1.00804407,66684.0,66683.0,0.00856]
[1718119998278,1.01004407,66684.0,66683.0,0.00856]
[1718119998719,1.01804407,66684.0,66683.0,0.00856]
[1718119998939,1.00804407,66684.0,66683.0,0.00856]
[1718119999367,0.56094407,66684.0,66683.0,0.00856]
[1718119999821,0.34889796,66684.0,66683.0,0.00856]
[1718120001436,0.33552813,66684.0,66683.0,0.03256]
[1718120002129,0.15117827,66684.0,66683.0,0.03406]
[1718120002304,0.00685834,66684.0,66683.0,0.730423]
[1718120002747,0.002,66684.0,66683.0,0.730423]
[1718120002956,0.14631993,66684.0,66683.0,0.13406]
[1718120003160,0.14631993,66684.0,66683.0,0.284023]
[1718120003393,0.15117827,66684.0,66683.0,0.13356]
[1718120003602,0.2308501,66684.0,66683.0,0.13356]
[1718120003819,0.23570844,66684.0,66683.0,0.03356]
[1718120004031,0.23370844,66684.0,66683.0,0.03156]
[1718120004239,0.14917827,66684.0,66683.0,0.03156]
[1718120004443,0.14917827,66684.0,66683.0,0.03306]
[1718120004853,0.14917827,66684.0,66683.0,0.03156]
[1718120005060,0.14917827,66684.0,66683.0,0.03206]
[1718120005297,0.09981969,66704.0,66695.0,0.149935]
[1718120005502,0.43295979,66708.0,66695.0,0.149935]
[1718120005503,0.14431993,66703.0,66696.0,0.123]
[1718120005717,0.14431993,66703.0,66699.0,0.150426]
[1718120005952,0.14431993,66703.0,66702.0,0.0005]
[1718120006167,0.01690445,66714.0,66705.0,0.149913]
[1718120006168,0.09981969,66711.0,66705.0,0.149913]
[1718120006396,0.24413962,66710.0,66706.0,0.27291]
[1718120006611,0.24413962,66710.0,66707.0,0.0005]
[1718120007038,0.01690445,66718.0,66706.0,0.27291]
[1718120007039,0.09981969,66725.0,66724.0,0.0005]
[1718120007284,0.08453017,66725.0,66724.0,0.1776]
[1718120007499,0.08453017,66725.0,66724.0,0.123]
[1718120007936,0.30143462,66725.0,66724.0,0.123]
[1718120008159,0.08453017,66715.0,66712.0,0.3015]
[1718120008367,0.08453017,66715.0,66713.0,0.123]
[1718120008368,0.14431993,66714.0,66713.0,0.123]
[1718120010312,0.14431993,66714.0,66713.0,0.25120829]
[1718120010511,0.14431993,66714.0,66713.0,0.25070829]
[1718120010719,0.14431993,66714.0,66713.0,0.56207275]
[1718120010940,0.14431993,66714.0,66713.0,0.56207632]
[1718120010941,0.14173041,66714.0,66713.0,0.56207632]
[1718120011140,0.14173041,66714.0,66713.0,0.56157632]
[1718120011758,0.14173041,66714.0,66703.0,0.01760848]
[1718120011759,0.54298472,66714.0,66703.0,0.01760848]
[1718120011911,0.54298472,66714.0,66704.0,0.31089546]
[1718120011912,0.08453017,66706.0,66704.0,0.31089546]
[1718120012110,0.08453017,66706.0,66701.0,0.1587]
[1718120012111,0.14431993,66705.0,66701.0,0.1587]
[1718120012316,0.14431993,66705.0,66695.0,0.1462]
[1718120012317,0.08453017,66701.0,66695.0,0.1462]
[1718120012521,0.01,66714.0,66693.0,0.149938]
[1718120012522,0.28453017,66697.0,66696.0,0.43908975]
[1718120012720,0.28453017,66697.0,66688.0,0.1537]
[1718120012721,0.08453017,66693.0,66688.0,0.1537]
[1718120012926,0.08453017,66693.0,66683.0,0.00856]
[1718120012927,0.18434986,66690.0,66689.0,0.13190913]
[1718120013134,0.54557424,66690.0,66689.0,0.13190913]
[1718120013340,0.2,66686.0,66683.0,0.00856]
[1718120013591,0.43634829,66685.0,66683.0,0.00856]
[1718120013821,0.40125431,66684.0,66683.0,0.00856]
[1718120013938,0.33332841,66684.0,66683.0,0.00856]
[1718120015032,0.24879824,66684.0,66683.0,0.00856]
[1718120015254,0.24879824,66684.0,66683.0,0.13790043]
[1718120015255,0.23342621,66684.0,66683.0,0.13790043]
[1718120015505,0.09440916,66687.0,66686.0,0.0005]
[1718120015682,0.23872909,66687.0,66686.0,0.46097096]
[1718120015904,0.23872909,66687.0,66686.0,0.58981139]
[1718120016181,0.23872909,66687.0,66686.0,0.71281139]
[1718120016402,0.09440916,66696.0,66691.0,0.0005]
[1718120016610,0.09440916,66694.0,66693.0,0.14994]
[1718120016889,0.09440916,66694.0,66693.0,0.43931874]
[1718120017337,0.09440916,66694.0,66693.0,0.56231874]
[1718120017553,0.32325926,66694.0,66693.0,0.56231874]
[1718120017771,0.54016371,66694.0,66693.0,0.56231874]
[1718120018010,0.32325926,66694.0,66693.0,0.56231874]
[1718120018240,0.23872909,66694.0,66693.0,0.56231874]
[1718120018919,0.43872909,66694.0,66693.0,0.56231874]
[1718120019145,0.23872909,66694.0,66693.0,0.123]
[1718120019585,0.43872909,66694.0,66693.0,0.25030743]
[1718120019810,0.23872909,66694.0,66693.0,0.56128448]
[1718120020466,0.23872909,66694.0,66693.0,0.12730743]
[1718120020467,0.32325926,66694.0,66693.0,0.12730743]
[1718120020686,0.97456371,66694.0,66693.0,0.12730743]
[1718120020917,0.29440916,66689.0,66682.0,0.00856]
[1718120021141,0.37893933,66684.0,66682.0,0.00856]
[1718120021427,0.37893933,66684.0,66683.0,0.1613835]
[1718120021428,0.32325926,66684.0,66683.0,0.1613835]
[1718120021879,0.32325926,66684.0,66683.0,0.16397843]
[1718120022290,0.32325926,66684.0,66683.0,0.47500616]
[1718120022508,0.52325926,66684.0,66683.0,0.18697843]
[1718120022963,0.32325926,66684.0,66683.0,0.18697843]
[1718120023379,0.32325926,66684.0,66683.0,0.49801114]
[1718120023584,0.32325926,66684.0,66683.0,0.18697843]
[1718120023796,0.54016371,66684.0,66683.0,0.18697843]
[1718120024035,0.39584378,66673.0,66664.0,0.04442193]
[1718120024246,0.39584378,66673.0,66663.0,0.04442193]
[1718120024247,0.69014871,66673.0,66663.0,0.04442193]
[1718120024459,0.69014871,66673.0,66658.0,0.11105483]
[1718120024460,1.20417958,66673.0,66651.0,0.010502]
[1718120024691,0.54583578,66670.0,66662.0,0.00259431]
[1718120025105,0.69015571,66670.0,66669.0,0.00356]
[1718120025589,0.70015571,66670.0,66669.0,0.00356]
[1718120025795,0.80015571,66670.0,66669.0,0.00356]
[1718120026903,0.79005571,66670.0,66669.0,0.00356]
[1718120027128,0.54006371,66670.0,66669.0,0.00356]
[1718120027856,0.55006371,66670.0,66669.0,0.00356]
[1718120028275,0.54006371,66670.0,66669.0,0.00356]
[1718120028701,0.54006371,66670.0,66669.0,0.02656]
[1718120029157,0.2288501,66670.0,66669.0,0.02656]
[1718120029366,0.31469926,66670.0,66669.0,0.02656]
[1718120030659,0.23016909,66670.0,66669.0,0.02656]
[1718120030850,0.31469926,66670.0,66669.0,0.02656]
[1718120031303,0.23016909,66670.0,66669.0,0.02656]
[1718120031545,0.14431993,66670.0,66669.0,0.02656]
[1718120031877,0.23016909,66670.0,66669.0,0.02656]
[1718120032082,0.14431993,66670.0,66669.0,0.02706]
[1718120032288,0.23016909,66670.0,66669.0,0.02656]
[1718120033195,0.14431993,66670.0,66669.0,0.02656]
[1718120033413,0.23016909,66670.0,66669.0,0.02656]
[1718120034298,0.07215996,66683.0,66669.0,0.02656]
[1718120034299,0.08584916,66677.0,66674.0,0.3043]
[1718120034519,0.23016909,66677.0,66675.0,0.0235]
[1718120034730,0.14431993,66677.0,66676.0,0.0005]
[1718120036009,0.08584916,66682.0,66681.0,0.0005]
[1718120036218,0.23016909,66682.0,66681.0,0.0005]
[1718120037100,0.23016909,66682.0,66680.0,0.123]
[1718120037316,0.14431993,66681.0,66680.0,0.123]
[1718120037528,0.14431993,66681.0,66680.0,0.1235]
[1718120037749,0.14431993,66681.0,66680.0,0.123]
[1718120038030,0.14431993,66681.0,66680.0,0.023]
[1718120038247,0.14431993,66681.0,66680.0,0.1]
[1718120038662,0.14431993,66681.0,66680.0,0.123]
[1718120038881,0.14431993,66681.0,66680.0,0.1235]
[1718120039098,0.08584916,66684.0,66683.0,0.0005]
[1718120039353,0.08584916,66692.0,66685.0,0.0005]
[1718120039597,0.14431993,66691.0,66690.0,0.0005]
[1718120039801,0.14431993,66691.0,66690.0,0.0235]
[1718120040026,0.14431993,66691.0,66690.0,0.023]
[1718120040253,0.34431993,66691.0,66690.0,0.023]
[1718120040481,0.14431993,66691.0,66690.0,0.023]
[1718120040736,0.08584916,66693.0,66690.0,0.023]
[1718120040976,0.08584916,66702.0,66695.0,0.0005]
[1718120041212,0.08453017,66708.0,66695.0,0.0005]
[1718120041213,0.23016909,66701.0,66695.0,0.250435]
[1718120041444,0.48660445,66710.0,66695.0,0.250435]
[1718120041445,0.08584916,66704.0,66703.0,0.0005]
[1718120041664,0.08584916,66703.0,66700.0,0.1455]
[1718120041878,0.08584916,66703.0,66701.0,0.023]
[1718120042096,0.08584916,66703.0,66701.0,0.123]
[1718120042329,0.08584916,66703.0,66702.0,0.0005]
[1718120042545,0.08584916,66703.0,66701.0,0.123]
[1718120042773,0.14431993,66702.0,66701.0,0.123]
[1718120042995,0.45315035,66702.0,66701.0,0.123]
[1718120043238,0.53150371,66702.0,66701.0,0.023]
[1718120043434,0.31469926,66702.0,66701.0,0.023]
[1718120043653,0.53150371,66702.0,66701.0,0.023]
[1718120044281,0.51469926,66702.0,66701.0,0.023]
[1718120044534,0.23016909,66702.0,66701.0,0.023]
[1718120044759,0.53150371,66702.0,66701.0,0.023]
[1718120045177,0.31469926,66702.0,66701.0,0.023]
[1718120045395,0.51469926,66702.0,66701.0,0.023]
[1718120045613,0.31469926,66702.0,66701.0,0.023]
[1718120047557,0.23016909,66702.0,66701.0,0.0235]
[1718120047791,0.23016909,66702.0,66701.0,0.0005]
[1718120048497,0.23016909,66702.0,66700.0,0.123]
[1718120049196,0.00749627,66701.0,66700.0,0.123]
[1718120049416,0.14431993,66701.0,66700.0,0.023]
[1718120049911,0.14431993,66701.0,66695.0,0.0235]
[1718120050171,0.14431993,66700.0,66697.0,0.0005]
[1718120050411,0.17132533,66702.0,66699.0,0.0005]
[1718120050412,0.08679516,66702.0,66699.0,0.0005]
[1718120050637,0.08679516,66702.0,66699.0,0.1005]
[1718120050867,0.08679516,66702.0,66701.0,0.0005]
[1718120051536,0.08679516,66702.0,66701.0,0.1005]
[1718120051764,0.08679516,66702.0,66701.0,0.1235]
[1718120052285,0.07142514,66702.0,66701.0,0.123]
[1718120052565,0.14431993,66702.0,66701.0,0.123]
[1718120052788,0.43254952,66702.0,66701.0,0.023]
[1718120053023,0.21574507,66702.0,66697.0,0.023]
[1718120053258,0.14431993,66701.0,66699.0,0.0005]
[1718120053552,0.14431993,66701.0,66697.0,0.023]
[1718120053553,0.34431993,66701.0,66697.0,0.023]
[1718120053738,0.41574507,66701.0,66697.0,0.023]
[1718120053958,0.21574507,66701.0,66697.0,0.023]
[1718120054406,0.21574507,66701.0,66697.0,0.0235]
[1718120054623,0.21574507,66701.0,66697.0,0.023]
[1718120055038,0.14431993,66701.0,66697.0,0.023]
[1718120055268,0.07142514,66701.0,66699.0,0.0005]
[1718120055924,0.07142514,66701.0,66700.0,0.150425]
[1718120056157,0.07142514,66701.0,66700.0,0.273425]
[1718120056387,0.07142514,66701.0,66700.0,0.272925]
[1718120056837,0.07142514,66701.0,66700.0,0.273425]
[1718120057292,0.07142514,66703.0,66700.0,0.272925]
[1718120057510,0.07142514,66701.0,66700.0,0.123]
[1718120057768,0.21574507,66701.0,66700.0,0.123]
[1718120058000,0.21574507,66701.0,66700.0,0.023]
[1718120058246,0.21574507,66701.0,66697.0,0.1]
[1718120058247,0.21574507,66701.0,66698.0,0.023]
[1718120058472,0.14431993,66700.0,66698.0,0.023]
[1718120059541,0.2,66699.0,66698.0,0.023]
[1718120059752,0.14431993,66699.0,66698.0,0.023]
[1718120060402,0.14431993,66699.0,66694.0,0.023]
[1718120060841,0.2,66695.0,66694.0,0.023]
[1718120061045,0.14431993,66698.0,66694.0,0.023]
[1718120061450,0.14431993,66698.0,66693.0,0.023]
[1718120061623,0.07142514,66696.0,66693.0,0.023]
[1718120061844,0.28822959,66691.0,66690.0,0.01809986]
[1718120062052,0.07142514,66686.0,66678.0,0.04465126]
[1718120062264,0.21680445,66683.0,66682.0,0.01785179]
[1718120062470,0.2,66679.0,66673.0,0.01304482]
[1718120062689,0.14431993,66678.0,66673.0,0.03077244]
[1718120062890,0.14431993,66678.0,66673.0,0.01304482]
[1718120063582,0.14431993,66678.0,66674.0,0.0005]
[1718120063761,0.14431993,66678.0,66673.0,0.01354482]
[1718120063982,0.14431993,66678.0,66673.0,0.01304482]
[1718120064416,0.07142514,66680.0,66677.0,0.0005]
[1718120064629,0.21574507,66680.0,66678.0,0.0005]
[1718120065279,0.07142514,66682.0,66681.0,0.0005]
[1718120065488,0.2,66695.0,66688.0,0.0005]
[1718120065489,0.07142514,66693.0,66688.0,0.0005]
[1718120065722,0.07142514,66693.0,66690.0,0.0005]
[1718120065939,0.07142514,66693.0,66686.0,0.12419303]
[1718120065940,0.07142514,66693.0,66692.0,0.149943]
[1718120066181,0.07142514,66698.0,66695.0,0.0005]
[1718120066393,0.07142514,66698.0,66697.0,0.0005]
[1718120066619,0.1435851,66697.0,66696.0,0.149931]
[1718120066838,0.1435851,66697.0,66696.0,0.172931]
[1718120067558,0.07215996,66697.0,66696.0,0.172931]
[1718120067768,0.07142514,66697.0,66696.0,0.272931]
[1718120068022,0.2,66706.0,66696.0,0.272931]
[1718120068023,0.07142514,66699.0,66698.0,0.150429]
[1718120068256,0.07142514,66708.0,66707.0,0.149909]
[1718120068494,0.07142514,66708.0,66707.0,0.272909]
[1718120068723,0.07142514,66713.0,66707.0,0.123]
[1718120068930,0.07142514,66713.0,66708.0,0.123]
[1718120069631,0.14431993,66712.0,66708.0,0.123]
[1718120069873,0.34431993,66712.0,66708.0,0.123]
[1718120070141,0.1608,66718.0,66708.0,0.123]
[1718120070142,0.07142514,66721.0,66710.0,0.0005]
[1718120070381,0.07142514,66721.0,66718.0,0.0005]
[1718120070622,0.37723017,66731.0,66721.0,0.149877]
[1718120070623,0.07142514,66722.0,66721.0,0.149877]
[1718120071144,0.07142514,66728.0,66722.0,0.0005]